bitfinex-derivatives/quotes_BNBF0:USTF0_20250904
["timestamp","ask_amount","ask_price","bid_price","bid_amount"]
[1756957419021,1.5797208,850.26,849.56,0.58871916]
[1756957419319,1.5797208,850.26,849.57,0.58871916]
[1756957419516,1.5797208,850.26,849.58,0.58871916]
[1756957419819,1.5797208,850.26,849.59,0.58871916]
[1756957420115,1.5797208,850.26,849.6,0.58871916]
[1756957420416,1.5797208,850.26,849.61,0.58871916]
[1756957420619,1.5797208,850.26,849.62,0.58871916]
[1756957420817,1.5797208,850.26,849.63,0.58871916]
[1756957421019,1.5797208,850.26,849.14,0.79366862]
[1756957421216,1.5797208,850.26,849.15,1.29024525]
[1756957421419,1.5797208,850.26,849.16,1.29024525]
[1756957421716,1.5797208,850.26,849.17,1.29024525]
[1756957421914,1.5797208,850.22,849.18,1.29024525]
[1756957422119,1.5797208,850.22,849.19,1.29024525]
[1756957422317,1.5797208,850.22,849.15,0.79366862]
[1756957422318,1.5797208,850.23,849.2,1.29024525]
[1756957422516,1.5797208,850.23,849.21,1.29024525]
[1756957422717,1.5797208,850.51,849.22,1.29024525]
[1756957422919,1.5797208,850.51,849.23,1.29024525]
[1756957423115,1.5797208,850.51,849.24,1.29024525]
[1756957423318,1.5797208,850.51,849.25,1.29024525]
[1756957423517,1.5797208,850.51,849.06,0.79366862]
[1756957423518,1.5797208,850.51,849.26,1.29024525]
[1756957423714,1.5797208,850.51,849.27,1.29024525]
[1756957423917,1.5797208,850.51,848.56,0.20475587]
[1756957423918,1.5797208,850.45,849.28,1.29024525]
[1756957424219,1.5797208,850.45,849.29,1.29024525]
[1756957424416,1.5797208,850.45,849.3,1.29024525]
[1756957424721,1.5797208,850.45,849.31,1.29024525]
[1756957424921,1.5797208,850.45,849.32,1.29024525]
[1756957425123,1.5797208,850.45,849.33,1.29024525]
[1756957425322,1.5797208,850.45,849.34,1.29024525]
[1756957425520,1.5797208,850.45,849.35,1.29024525]
[1756957425721,1.5797208,850.46,849.36,1.29024525]
[1756957425920,1.5797208,850.46,849.37,1.29024525]
[1756957426124,1.5797208,850.52,849.38,1.29024525]
[1756957426320,1.5797208,850.52,849.39,1.29024525]
[1756957426518,1.5797208,850.52,849.4,1.29024525]
[1756957426721,1.5797208,850.52,849.41,1.29024525]
[1756957426924,1.5797208,850.52,849.42,1.29024525]
[1756957427127,1.5797208,850.52,849.43,1.29024525]
[1756957427327,1.5797208,850.52,849.44,1.29024525]
[1756957427525,1.5797208,850.52,849.45,1.29024525]
[1756957427726,1.5797208,850.52,849.46,1.29024525]
[1756957427923,1.5797208,850.52,849.47,1.29024525]
[1756957428126,1.5797208,850.52,849.48,1.29024525]
[1756957428425,1.5797208,850.52,849.49,1.29024525]
[1756957428628,1.5797208,850.52,849.5,0.58873067]
[1756957428923,1.5797208,850.51,849.51,0.58873067]
[1756957429229,1.5797208,850.51,849.52,0.58873067]
[1756957429425,1.5797208,850.51,849.53,0.58873067]
[1756957429626,1.5797208,850.51,849.54,0.58873067]
[1756957429825,1.5797208,850.51,849.55,0.58873067]
[1756957430028,1.5797208,850.51,849.56,0.58873067]
[1756957430225,1.5797208,850.51,849.57,0.58873067]
[1756957430525,1.5797208,850.51,849.58,0.58873067]
[1756957430725,1.5797208,850.51,849.59,0.58873067]
[1756957430929,1.5797208,850.51,849.6,0.58873067]
[1756957431125,1.5797208,850.28,849.61,0.58873067]
[1756957431430,1.5797208,850.12,848.85,0.79366862]
[1756957431729,1.5797208,850.12,848.86,1.29017272]
[1756957431929,1.5797208,850.12,848.87,1.29017272]
[1756957432129,1.5797208,850.12,848.88,1.29017272]
[1756957432329,1.5797208,850.13,848.89,1.29017272]
[1756957432524,1.5797208,850.13,848.84,0.79366862]
[1756957432525,1.5797208,850.13,848.9,1.29017272]
[1756957432728,1.5797208,850.13,848.91,1.29017272]
[1756957432929,1.5797208,850.13,848.92,0.70131075]
[1756957433128,1.5797208,850.13,848.93,1.29017272]
[1756957433426,1.5797208,850.14,848.94,1.29017272]
[1756957433626,1.5797208,850.13,848.95,1.29017272]
[1756957433825,1.5797208,850.18,848.96,1.29017272]
[1756957434030,1.5797208,850.18,848.97,1.29017272]
[1756957434229,1.5797208,850.16,848.98,1.29017272]
[1756957434424,1.5797208,850.18,848.99,1.29017272]
[1756957434628,1.5797208,850.18,849.0,1.29017272]
[1756957434827,1.5797208,850.18,849.01,1.29017272]
[1756957435029,1.5797208,850.18,849.02,1.29017272]
[1756957435228,1.5797208,850.18,849.03,1.29017272]
[1756957435427,1.5797208,850.16,849.04,1.29017272]
[1756957435630,1.5797208,850.16,849.05,1.29017272]
[1756957435829,1.5797208,850.15,849.06,1.29017272]
[1756957436030,1.5797208,850.15,849.07,1.29017272]
[1756957436228,1.5797208,850.15,849.08,1.29017272]
[1756957436428,1.5797208,850.25,849.09,1.29017272]
[1756957436630,1.5797208,850.25,849.1,1.29017272]
[1756957436832,1.5797208,850.25,849.11,1.29017272]
[1756957437030,1.5797208,850.25,849.12,1.29017272]
[1756957437329,1.5797208,850.26,849.13,1.29017272]
[1756957437529,1.5797208,850.25,849.14,1.29017272]
[1756957437733,1.5797208,850.25,849.15,1.29017272]
[1756957437931,1.5797208,850.25,849.16,1.29017272]
[1756957438128,1.5797208,850.25,849.17,1.29017272]
[1756957438333,1.5797208,850.26,849.18,1.29017272]
[1756957438530,1.5797208,850.26,849.19,1.29017272]
[1756957438830,1.5797208,850.26,849.2,1.29017272]
[1756957439029,1.5797208,850.26,849.21,1.29017272]
[1756957439230,1.5797208,850.26,849.22,1.29017272]
[1756957439435,1.5797208,850.26,849.23,1.29017272]
[1756957439633,1.5797208,850.26,849.24,1.29017272]
[1756957439831,1.5797208,850.26,849.25,1.29017272]
[1756957440033,1.5797208,850.26,849.26,1.29017272]
[1756957440232,1.5797208,850.36,849.27,1.29017272]
[1756957440434,1.5797208,850.36,849.28,1.29017272]
[1756957440636,1.5797208,850.36,849.29,1.28928257]
[1756957440837,1.5797208,850.36,849.3,1.28928257]
[1756957441139,1.5797208,850.35,849.31,0.58886197]
[1756957441338,1.5797208,850.35,849.32,0.58886197]
[1756957441638,1.5797208,850.35,849.33,0.58886197]
[1756957441938,1.5797208,850.35,849.34,0.58886197]
[1756957442138,1.5797208,850.35,849.35,0.58886197]
[1756957442332,1.5797208,850.35,849.36,0.58886197]
[1756957442534,1.5797208,850.35,849.37,0.58886197]
[1756957442836,1.5797208,850.35,849.38,0.58886197]
[1756957443034,1.5797208,850.35,849.39,0.58886197]
[1756957443236,1.5797208,850.35,849.4,0.58886197]
[1756957443438,1.5797208,850.35,849.41,0.58886197]
[1756957443735,1.5797208,850.34,849.42,0.58886197]
[1756957443946,1.5797208,850.34,849.43,0.58886197]
[1756957444135,1.5797208,850.34,849.44,0.58886197]
[1756957444334,1.5797208,850.33,849.45,0.58886197]
[1756957444535,1.5797208,850.33,849.46,0.58886197]
[1756957444735,1.5797208,850.33,849.47,0.58886197]
[1756957444933,1.5797208,850.33,849.48,0.58886197]
[1756957445133,1.5797208,850.33,849.49,0.58886197]
[1756957445336,1.5797208,850.34,848.83,0.79233591]
[1756957445535,1.5797208,850.34,848.84,1.28908869]
[1756957445739,1.5797208,850.34,848.85,1.28908869]
[1756957445938,1.5797208,850.33,848.86,1.28908869]
[1756957446137,1.5797208,850.33,848.87,1.28908869]
[1756957446335,1.5797208,850.28,848.88,1.28908869]
[1756957446539,1.5797208,850.28,848.89,1.28908869]
[1756957446740,1.5797208,850.28,848.9,1.28908869]
[1756957446939,1.5797208,850.28,848.91,1.28908869]
[1756957447240,1.5797208,850.28,848.92,1.28908869]
[1756957447534,1.5797208,850.28,848.93,1.28908869]
[1756957447738,1.5797208,850.28,848.84,0.79233591]
[1756957447739,1.5797208,850.28,848.94,1.28908869]
[1756957447934,1.5797208,850.28,848.95,1.28908869]
[1756957448137,1.5797208,850.28,848.96,1.28908869]
[1756957448342,1.5797208,850.28,848.97,1.28908869]
[1756957448540,1.5797208,850.28,848.98,1.28908869]
[1756957448741,1.5797208,850.29,848.99,1.28908869]
[1756957448940,1.5797208,850.29,849.0,1.28908869]
[1756957449142,1.5797208,850.28,849.01,1.28908869]
[1756957449338,1.5797208,850.29,849.02,1.28908869]
[1756957449541,1.5797208,850.29,849.03,1.28908869]
[1756957449841,1.5797208,850.3,849.04,1.28908869]
[1756957450041,1.5797208,850.15,849.05,1.28908869]
[1756957450237,1.5797208,850.15,849.06,1.28908869]
[1756957450436,1.5797208,850.15,849.07,1.28908869]
[1756957450640,1.5797208,850.15,849.08,1.28908869]
[1756957450841,1.5797208,850.15,849.09,1.28908869]
[1756957451038,1.5797208,850.14,849.1,1.28908869]
[1756957451243,1.5797208,850.14,849.11,1.28908869]
[1756957451538,1.5797208,850.14,849.12,1.28908869]
[1756957451742,1.5797208,850.14,849.13,1.28908869]
[1756957451944,1.5797208,850.14,849.14,1.28908869]
[1756957452242,1.5797208,850.14,849.15,1.28908869]
[1756957452439,1.5797208,850.14,849.16,1.28908869]
[1756957452638,1.5797208,850.14,849.17,1.28908869]
[1756957452840,1.5797208,850.14,849.18,1.28908869]
[1756957453041,1.5797208,850.14,849.19,1.28908869]
[1756957453240,1.5797208,850.13,849.2,0.5888447]
[1756957453443,0.20481552,849.91,849.21,1.28887154]
[1756957453638,0.20481552,849.91,849.22,0.5888447]
[1756957453841,0.20481552,849.91,849.23,0.5888447]
[1756957454041,0.20481552,849.91,849.24,0.5888447]
[1756957454244,0.20481552,849.91,849.25,0.5888447]
[1756957454541,0.20481552,849.91,849.26,0.5888447]
[1756957454741,0.20481552,849.91,849.27,0.5888447]
[1756957454944,0.20481552,849.91,849.28,0.5888447]
[1756957455141,0.20481552,849.91,849.29,0.5888447]
[1756957455345,0.20481552,849.91,849.3,0.5888447]
[1756957455645,0.20481552,849.91,849.31,0.5888447]
[1756957455840,0.20481552,849.91,849.32,0.5888447]
[1756957456044,0.20481552,849.91,849.33,0.5888447]
[1756957456239,0.20481552,849.91,849.34,0.5888447]
[1756957456442,0.20481552,849.91,849.35,0.5888447]
[1756957456640,0.20481552,849.91,849.36,0.5888447]
[1756957456845,0.20481552,849.91,848.88,0.79189134]
[1756957457042,0.20481552,849.91,848.89,1.28887361]
[1756957457342,0.20481552,849.91,848.9,1.28887361]
[1756957457545,0.20481552,849.91,848.91,1.28887361]
[1756957457742,0.20481552,849.91,848.92,1.28887361]
[1756957457947,0.20481552,849.91,848.93,1.28887361]
[1756957458141,0.20481552,849.91,848.94,1.28887361]
[1756957458341,0.20481552,849.91,848.95,1.28887361]
[1756957458543,0.20481552,849.91,848.96,1.28887361]
[1756957458743,0.20481552,849.91,848.97,1.28887361]
[1756957458945,0.20481552,849.91,848.98,1.28887361]
[1756957459148,0.20481552,849.91,848.99,1.28887361]
[1756957459443,0.20481552,849.91,849.0,1.28887361]
[1756957459641,0.20481552,849.91,849.01,1.28887361]
[1756957459842,0.20481552,849.91,849.02,1.28887361]
[1756957460040,0.20481552,849.91,849.03,1.28887361]
[1756957460242,0.20481552,849.91,849.04,1.28887361]
[1756957460442,0.20481552,849.91,849.05,1.28887361]
[1756957460642,0.20481552,849.91,849.06,1.28887361]
[1756957460844,0.20481552,849.91,849.07,1.28887361]
[1756957461045,0.20481552,849.91,849.08,1.28887361]
[1756957461246,0.20481552,849.91,849.09,1.28887361]
[1756957461444,0.20481552,849.91,849.1,1.28887361]
[1756957461648,0.20481552,849.91,849.11,1.28887361]
[1756957461849,0.20481552,849.91,849.12,1.28887361]
[1756957462050,0.20481552,849.91,849.13,1.28887361]
[1756957462249,0.20481552,849.91,849.14,1.28887361]
[1756957462449,0.20481552,849.91,849.15,1.28887361]
[1756957462651,0.20481552,849.91,849.16,1.28887361]
[1756957462946,0.20481552,849.91,849.17,1.28887361]
[1756957463150,0.20481552,849.91,849.18,1.28887361]
[1756957463346,0.20481552,849.91,849.19,1.28887361]
[1756957463544,0.20481552,849.91,849.2,1.28887361]
[1756957463747,0.20481552,849.91,849.21,1.28887361]
[1756957463951,0.20481552,849.91,849.22,1.28887361]
[1756957464246,0.20481552,849.91,849.23,1.28887361]
[1756957464449,0.20481552,849.91,849.24,1.28887361]
[1756957464646,0.20481552,849.91,849.25,1.28887361]
[1756957464851,0.20481552,849.91,849.26,0.58884988]
[1756957465047,0.20481552,849.91,849.27,0.58884988]
[1756957465248,0.20481552,849.91,849.28,0.58884988]
[1756957465452,0.20481552,849.91,849.29,0.58884988]
[1756957465652,0.20481552,849.91,849.3,0.58884988]
[1756957465952,0.20481552,849.91,849.31,0.58884988]
[1756957466153,0.20481552,849.91,849.32,0.58884988]
[1756957466350,0.20481552,849.91,849.33,0.58884988]
[1756957466554,0.20481552,849.91,849.34,0.58884988]
[1756957466753,0.20481552,849.91,849.35,0.58884988]
[1756957467056,0.20481552,849.91,849.36,0.58884988]
[1756957467252,0.20481552,849.91,849.37,0.58884988]
[1756957467453,0.20481552,849.91,848.95,0.79189134]
[1756957467454,0.20481552,849.91,849.38,0.58884988]
[1756957467651,0.20481552,849.91,849.39,0.58884988]
[1756957467854,0.20481552,849.91,848.95,0.79189134]
[1756957468157,0.20481552,849.91,848.96,1.28925957]
[1756957468353,0.20481552,849.91,848.97,1.28925957]
[1756957468654,0.20481552,849.91,848.98,1.28925957]
[1756957468957,0.20481552,849.91,848.99,1.28925957]
[1756957469156,0.20481552,849.91,849.0,1.28925957]
[1756957469353,0.20481552,849.91,849.01,1.28925957]
[1756957469557,0.20481552,849.91,849.02,1.28925957]
[1756957469757,0.20481552,849.91,849.03,1.28925957]
[1756957470054,0.20481552,849.91,849.04,0.70040969]
[1756957470256,0.20481552,849.91,849.05,1.28925957]
[1756957470454,0.20481552,849.91,849.06,1.28925957]
[1756957470654,0.20481552,849.91,849.07,1.28925957]
[1756957470856,0.20481552,849.91,849.08,1.28925957]
[1756957471059,0.20481552,849.91,849.09,1.28925957]
[1756957471358,0.20481552,849.91,849.1,1.28925957]
[1756957471656,0.20481552,849.91,849.11,1.28925957]
[1756957471954,0.20481552,849.91,849.12,1.28925957]
[1756957472156,0.20481552,849.91,849.13,1.28925957]
[1756957472455,0.20481552,849.91,849.14,1.28925957]
[1756957472660,0.20481552,849.91,849.15,1.28925957]
[1756957472859,0.20481552,849.91,849.16,1.28925957]
[1756957473056,0.20481552,849.91,849.17,1.28925957]
[1756957473359,0.20481552,849.91,849.18,1.28925957]
[1756957473560,0.20481552,849.91,849.19,1.28925957]
[1756957473757,0.20481552,849.91,849.2,1.28925957]
[1756957473960,0.20481552,849.91,849.21,0.58884988]
[1756957474161,0.20481552,849.91,849.22,0.58884988]
[1756957474360,0.20481552,849.91,849.23,0.58884988]
[1756957474558,0.20481552,849.91,849.24,0.58884988]
[1756957474762,0.20481552,849.91,849.25,0.58884988]
[1756957474961,0.20481552,849.91,849.26,0.58884988]
[1756957475158,0.20481552,849.91,849.27,0.58884988]
[1756957475459,0.20481552,849.91,849.28,0.58884988]
[1756957475658,0.20481552,849.91,849.29,0.58884988]
[1756957475860,0.20481552,849.91,849.3,0.58884988]
[1756957476061,0.20481552,849.91,849.31,0.58884988]
[1756957476261,0.20481552,849.91,849.32,0.58884988]
[1756957476462,0.20481552,849.91,849.33,0.58884988]
[1756957476663,0.20481552,849.91,849.34,0.58884988]
[1756957476866,0.20481552,849.91,849.35,0.58884988]
[1756957477063,0.20481552,849.91,848.92,0.79189134]
[1756957477064,0.20481552,849.91,849.36,0.58884988]
[1756957477268,0.20481552,849.91,849.37,0.58884988]
[1756957477468,0.20481552,849.91,849.38,0.58884988]
[1756957477670,0.20481552,849.91,848.64,0.79189134]
[1756957477870,0.20481552,849.91,848.65,1.29006248]
[1756957478070,0.20481552,849.91,848.66,1.29006248]
[1756957478269,0.20481552,849.91,848.67,1.29006248]
[1756957478470,0.20481552,849.91,848.68,1.29006248]
[1756957478670,0.20481552,849.91,848.69,1.29006248]
[1756957478871,0.20481552,849.91,848.7,1.29006248]
[1756957479169,0.20481552,849.91,848.71,1.29006248]
[1756957479367,0.20481552,849.91,848.72,1.29006248]
[1756957479570,0.20481552,849.91,848.73,1.29006248]
[1756957479771,0.20481552,849.91,848.74,1.29006248]
[1756957479971,0.20481552,849.91,848.75,1.29006248]
[1756957480166,0.20481552,849.91,848.76,1.29006248]
[1756957480370,0.20481552,849.91,848.77,1.29006248]
[1756957480580,0.20481552,849.91,848.78,1.29006248]
[1756957480771,0.20481552,849.91,848.79,1.29006248]
[1756957480977,0.20481552,849.91,848.8,1.29006248]
[1756957481174,0.20481552,849.91,848.81,1.29006248]
[1756957481469,0.20481552,849.91,848.82,1.29006248]
[1756957481774,0.20481552,849.91,848.83,1.29006248]
[1756957481973,0.20481552,849.91,848.65,0.79189134]
[1756957481974,0.20481552,849.91,848.84,1.29006248]
[1756957482270,0.20481552,849.91,848.85,1.29006248]
[1756957482470,0.20481552,849.91,848.86,1.29006248]
[1756957482670,0.20481552,849.91,848.87,1.29006248]
[1756957482875,0.20481552,849.91,848.88,1.29006248]
[1756957483081,0.20481552,849.91,848.89,0.70108183]
[1756957483370,0.20481552,849.91,848.9,0.70108183]
[1756957483570,0.20481552,849.91,848.91,0.70108183]
[1756957483774,0.20481552,849.91,848.92,0.70108183]
[1756957484072,0.20481552,849.91,848.93,0.70108183]
[1756957484274,0.20481552,849.91,848.94,0.70108183]
[1756957484574,0.20481552,849.91,848.95,0.70108183]
[1756957484772,0.20481552,849.91,848.96,1.29006995]
[1756957485074,0.20481552,849.91,848.97,0.70108183]
[1756957485272,0.20481552,849.91,848.98,1.29007023]
[1756957485470,0.20481552,849.91,848.99,1.29007023]
[1756957485676,0.20481552,849.91,849.0,1.29007023]
[1756957485877,0.20481552,849.91,849.01,1.29007023]
[1756957486072,0.20481552,849.91,849.02,1.29011644]
[1756957486272,0.20481552,849.91,849.03,1.29011644]
[1756957486575,0.20481552,849.91,849.04,1.29011644]
[1756957486773,0.20481552,849.91,849.05,1.29011644]
[1756957486978,0.20481552,849.91,849.06,1.29011644]
[1756957487276,0.20481552,849.91,849.07,1.29011644]
[1756957487474,0.20481552,849.91,849.08,1.29011644]
[1756957487775,0.20481552,849.91,849.09,1.29011644]
[1756957487972,0.20481552,849.91,849.1,0.58903461]
[1756957488176,0.20481552,849.91,849.11,0.58903461]
[1756957488376,0.20481552,849.91,849.12,0.58903461]
[1756957488673,0.20481552,849.91,849.13,0.58903461]
[1756957488872,0.20481552,849.91,849.14,0.58903461]
[1756957489173,0.20481552,849.91,849.15,0.58903461]
[1756957489376,0.20481552,849.91,849.16,0.58903461]
[1756957489578,0.20481552,849.91,849.17,0.58903461]
[1756957489775,0.20481552,849.91,849.18,0.58903461]
[1756957489976,0.20481552,849.91,849.19,0.58903461]
[1756957490175,0.20481552,849.91,849.2,0.58903461]
[1756957490379,0.20481552,849.91,849.21,0.58903461]
[1756957490583,0.20481552,849.91,849.22,0.58903461]
[1756957490784,0.20481552,849.91,849.23,0.58903461]
[1756957490983,0.20481552,849.91,848.57,0.79189134]
[1756957491179,0.20481552,849.91,848.58,1.28888976]
[1756957491383,0.20481552,849.91,848.59,1.28888976]
[1756957491583,0.20481552,849.91,848.6,1.28888976]
[1756957491782,0.20481552,849.91,848.61,1.28888976]
[1756957491985,0.20481552,849.91,848.62,1.28888976]
[1756957492186,0.20481552,849.91,848.63,1.28888976]
[1756957492486,0.20481552,849.91,848.64,1.28888976]
[1756957492684,0.20481552,849.91,848.65,1.28888976]
[1756957492985,0.20481552,849.91,848.66,1.28888976]
[1756957493188,0.20481552,849.91,848.67,1.28888976]
[1756957493488,0.20481552,849.91,848.68,1.28888976]
[1756957493688,0.20481552,849.91,848.69,1.28888976]
[1756957493889,0.20481552,849.91,848.7,1.28888976]
[1756957494086,0.20481552,849.91,848.71,1.28888976]
[1756957494289,0.20481552,849.91,848.72,1.28888976]
[1756957494590,0.20481552,849.91,848.24,1.0545098]
[1756957494591,0.20481552,849.91,848.73,1.28888976]
[1756957494789,0.20481552,849.91,848.74,1.28888976]
[1756957494986,0.20481552,849.91,848.75,1.28888976]
[1756957495190,0.20481552,849.91,848.76,1.28888976]
[1756957495386,0.20481552,849.91,848.77,1.28888976]
[1756957495687,0.20481552,849.91,848.78,1.28888976]
[1756957495886,0.20481552,849.91,848.79,1.28888976]
[1756957496092,0.20481552,849.91,848.8,1.28888976]
[1756957496291,0.20481552,849.91,848.81,1.28888976]
[1756957496488,0.20481552,849.91,848.82,1.28888976]
[1756957496689,0.20481552,849.91,848.83,1.28888976]
[1756957496890,0.20481552,849.91,848.84,1.28888976]
[1756957497089,0.20481552,849.91,848.85,1.28888976]
[1756957497288,0.20481552,849.91,848.86,1.28888976]
[1756957497490,0.20481552,849.91,848.87,1.28888976]
[1756957497691,1.5797208,849.9,848.88,1.28888976]
[1756957497888,1.5797208,849.9,848.89,1.28888976]
[1756957498188,1.5797208,849.9,848.9,1.28888976]
[1756957498388,1.5797208,849.9,848.91,1.28888976]
[1756957498593,1.5797208,849.9,848.92,1.28888976]
[1756957498892,1.5797208,849.9,848.93,1.28888976]
[1756957499092,1.5797208,849.9,848.94,1.28888976]
[1756957499293,1.5797208,849.9,848.95,0.58903489]
[1756957499493,1.5797208,849.9,848.59,0.79189134]
[1756957499494,1.5797208,849.9,848.96,0.58903489]
[1756957499694,1.5797208,849.9,848.97,0.58903489]
[1756957499894,1.5797208,849.9,848.98,0.58903489]
[1756957500190,1.5797208,849.9,848.99,0.58903489]
[1756957500390,1.5797208,849.9,849.0,0.58903489]
[1756957500593,1.5797208,849.9,849.01,0.58903489]
[1756957500794,1.5797208,849.9,849.02,0.58903489]
[1756957500993,1.5797208,849.89,849.03,0.58903489]
[1756957501199,1.5797208,849.89,849.04,0.58903489]
[1756957501496,1.5797208,849.89,848.58,0.79189134]
[1756957501497,1.5797208,849.88,849.05,0.58903489]
[1756957501695,1.5797208,849.88,849.06,0.58903489]
[1756957501898,1.5797208,849.88,849.07,0.58903489]
[1756957502099,1.5797208,849.88,849.08,0.58903489]
[1756957502298,1.5797208,849.88,849.09,0.58903489]
[1756957502499,1.5797208,849.88,848.58,0.79189134]
[1756957502796,1.5797208,849.88,848.59,1.28819033]
[1756957502998,1.5797208,849.88,848.6,1.28819033]
[1756957503194,1.5797208,849.88,848.61,1.28819033]
[1756957503399,1.5797208,849.89,848.62,1.28819033]
[1756957503599,1.5797208,849.84,848.63,1.28819033]
[1756957503800,1.5797208,849.79,848.64,1.28819033]
[1756957504099,1.5797208,849.79,848.65,1.28819033]
[1756957504294,1.5797208,849.82,848.66,1.28819033]
[1756957504498,1.5797208,849.83,848.67,1.28819033]
[1756957504700,1.5797208,849.83,848.68,1.28819033]
[1756957504900,1.5797208,849.83,848.69,1.28819033]
[1756957505101,1.5797208,849.83,848.7,1.28819033]
[1756957505301,1.5797208,849.83,848.71,1.28819033]
[1756957505501,1.5797208,849.83,848.72,1.28819033]
[1756957505704,1.5797208,849.85,848.73,1.28819033]
[1756957505897,1.5797208,849.85,848.74,1.28819033]
[1756957506103,1.5797208,849.85,848.75,1.28819033]
[1756957506302,1.5797208,849.85,848.76,1.28819033]
[1756957506501,1.5797208,849.85,848.77,1.28819033]
[1756957506702,1.5797208,849.85,848.78,1.28819033]
[1756957507002,1.5797208,849.87,848.79,1.28819033]
[1756957507201,1.5797208,849.87,848.8,1.28819033]
[1756957507402,0.20481552,849.91,848.81,1.28819033]
[1756957507602,0.20481552,849.91,848.82,1.28819033]
[1756957507802,0.20481552,849.91,848.83,1.28819033]
[1756957507998,0.20481552,849.91,848.84,1.28819033]
[1756957508303,0.20481552,849.91,848.85,1.28819033]
[1756957508504,0.20481552,849.91,848.86,1.28819033]
[1756957508702,0.20481552,849.91,848.87,1.28819033]
[1756957508903,0.20481552,849.91,848.88,1.28819033]
[1756957509102,0.20481552,849.91,848.89,1.28819033]
[1756957509299,0.20481552,849.91,848.9,1.28819033]
[1756957509504,0.20481552,849.91,848.91,1.28819033]
[1756957509705,0.20481552,849.91,848.92,1.28819033]
[1756957509903,0.20481552,849.91,848.93,1.28819033]
[1756957510107,0.20481552,849.91,848.94,1.28819033]
[1756957510407,0.20481552,849.91,848.95,1.28819033]
[1756957510607,0.20481552,849.91,848.96,1.28819033]
[1756957510804,0.20481552,849.91,848.97,1.28819033]
[1756957511104,0.20481552,849.91,848.98,1.28819033]
[1756957511303,0.20481552,849.91,848.99,1.28819033]
[1756957511508,0.20481552,849.91,849.0,1.28819033]
[1756957511803,0.20481552,849.91,849.01,1.28819033]
[1756957512107,0.20481552,849.91,849.02,1.28819033]
[1756957512309,0.20481552,849.91,849.03,1.28819033]
[1756957512508,0.20481552,849.91,849.04,1.28819033]
[1756957512708,0.20481552,849.91,849.05,1.28819033]
[1756957512908,0.20481552,849.91,849.06,1.28819033]
[1756957513208,0.20481552,849.91,849.07,1.28819033]
[1756957513405,0.20481552,849.91,849.08,1.28819033]
[1756957513606,0.20481552,849.91,849.09,1.28819033]
[1756957513906,0.20481552,849.91,849.1,1.28819033]
[1756957514107,0.20481552,849.91,849.11,1.28819033]
[1756957514407,0.20481552,849.91,849.12,1.28819033]
[1756957514609,0.20481552,849.91,849.13,1.28819033]
[1756957514806,0.20481552,849.91,849.14,1.28819033]
[1756957515009,0.20481552,849.91,849.15,1.28819033]
[1756957515303,0.20481552,849.91,849.16,1.28815615]
[1756957515506,0.20481552,849.91,849.17,0.58905361]
[1756957515809,0.20481552,849.91,849.18,0.58905361]
[1756957516007,0.20481552,849.91,849.19,0.58905361]
[1756957516208,0.20481552,849.91,849.2,0.58905361]
[1756957516406,0.20481552,849.91,849.21,0.58905361]
[1756957516604,0.20481552,849.91,849.22,0.58905361]
[1756957516808,0.20481552,849.91,849.23,0.58905361]
[1756957517007,0.20481552,849.91,848.69,0.79189134]
[1756957517008,0.20481552,849.91,849.24,0.58905361]
[1756957517208,0.20481552,849.91,849.25,0.58905361]
[1756957517512,0.20481552,849.91,849.26,0.58905361]
[1756957517807,0.20481552,849.91,849.27,0.58905361]
[1756957518012,0.20481552,849.91,849.28,0.58905361]
[1756957518209,0.20481552,849.91,849.29,0.58905361]
[1756957518408,0.20481552,849.91,849.3,0.58905361]
[1756957518709,0.20481552,849.91,849.31,0.58905361]
[1756957518912,0.20481552,849.91,849.32,0.58905361]
[1756957519213,0.20481552,849.91,848.43,1.0545098]
[1756957519214,0.20481552,849.91,849.33,0.58905361]
[1756957519408,0.20481552,849.91,848.7,0.79189134]
[1756957519614,0.20481552,849.91,848.71,1.28811387]
[1756957519814,0.20481552,849.91,848.72,1.28811382]
[1756957520109,0.20481552,849.91,848.73,1.28811382]
[1756957520309,0.20481552,849.91,848.74,1.28811382]
[1756957520512,0.20481552,849.91,848.75,1.28811382]
[1756957520712,0.20481552,849.91,848.76,1.28811382]
[1756957520910,0.20481552,849.91,848.77,1.28811382]
[1756957521110,0.20481552,849.91,848.78,1.28811382]
[1756957521314,0.20481552,849.91,848.79,1.28811382]
[1756957521613,0.20481552,849.91,848.8,1.28811382]
[1756957521816,0.20481552,849.91,848.81,1.28811382]
[1756957522115,0.20481552,849.91,848.82,1.28811382]
[1756957522315,0.20481552,849.91,848.83,1.28811382]
[1756957522511,0.20481552,849.91,848.84,1.28811382]
[1756957522716,0.20481552,849.91,848.85,1.28811382]
[1756957522913,0.20481552,849.91,848.86,1.28811382]
[1756957523114,0.20481552,849.91,848.87,1.28811382]
[1756957523417,0.20481552,849.91,848.88,1.28811382]
[1756957523614,0.20481552,849.91,848.89,1.28811382]
[1756957523813,0.20481552,849.91,848.9,1.28811382]
[1756957524015,0.20481552,849.91,848.91,1.28811382]
[1756957524213,0.20481552,849.91,848.92,1.28811382]
[1756957524418,0.20481552,849.91,848.93,1.28811382]
[1756957524617,0.20481552,849.91,848.94,1.28811382]
[1756957524816,0.20481552,849.91,848.95,1.28811382]
[1756957525014,0.20481552,849.91,848.96,1.28811382]